fUSD/lending_fUSD_20240216
["ID","MTS","AMOUNT","RATE_DAILY","PERIOD"]
[314192238,1708056646650,-286.22743,0.00041456,14]
[314192240,1708056646660,-151.0,0.00041456,14]
[314192241,1708056646670,-151.0,0.00041456,14]
[314192242,1708056646679,-800.0,0.00041458,20]
[314192243,1708056646688,-286.0,0.00041465,7]
[314192244,1708056646697,-171.0,0.00041465,7]
[314192245,1708056646706,-200.0,0.00041465,7]
[314192246,1708056646715,-150.0,0.00041465,2]
[314192247,1708056646723,-150.0,0.00041467,2]
[314192248,1708056646733,-200.0,0.0004147,20]
[314192249,1708056646742,-58000.0,0.0004147,5]
[314192250,1708056646750,-171.145406,0.0004147,14]
[314192251,1708056646760,-151.0,0.0004147,14]
[314192252,1708056646769,-165.529889,0.0004147,14]
[314192253,1708056646778,-151.0,0.0004147,14]
[314192254,1708056646787,-151.0,0.0004147,14]
[314192255,1708056646796,-151.0,0.0004147,2]
[314192256,1708056646805,-151.0,0.0004147,14]
[314192257,1708056646814,-151.0,0.0004147,2]
[314192258,1708056646823,-151.0,0.0004147,14]
[314192259,1708056646832,-150.0,0.00041477,2]
[314192260,1708056646841,-150.0,0.00041483,2]
[314192261,1708056646849,-150.0,0.00041495,2]
[314192262,1708056646858,-11083.85862073,0.00041495,15]
[314192263,1708056646867,-150.0,0.00041496,2]
[314192264,1708056646876,-150.0,0.00041497,2]
[314192265,1708056646885,-151.021624,0.00041498,27]
[314192266,1708056646894,-150.0,0.000415,7]
[314192267,1708056646903,-150.0,0.000415,7]
[314192268,1708056646913,-150.0,0.000415,7]
[314192269,1708056646922,-150.0,0.000415,7]
[314192270,1708056646931,-666.0,0.000415,7]
[314192271,1708056646941,-800.0,0.00041505,20]
[314192272,1708056646950,-200.0,0.00041505,20]
[314192273,1708056646960,-500.0,0.00041505,20]
[314192274,1708056646971,-151.0,0.00041505,14]
[314192275,1708056646980,-150.0,0.00041512,2]
[314192276,1708056646990,-150.0,0.00041525,2]
[314192277,1708056646999,-300.0,0.00041529,2]
[314192278,1708056647009,-500.0,0.00041538,2]
[314192279,1708056647018,-500.0,0.00041538,2]
[314192280,1708056647027,-500.0,0.00041538,2]
[314192281,1708056647037,-500.0,0.00041538,2]
[314192282,1708056647046,-500.0,0.00041538,2]
[314192283,1708056647055,-500.0,0.00041538,2]
[314192284,1708056647064,-500.0,0.00041538,2]
[314192285,1708056647074,-500.0,0.00041538,2]
[314192286,1708056647083,-500.0,0.00041538,2]
[314192287,1708056647093,-500.0,0.00041538,2]
[314192288,1708056647104,-500.0,0.00041538,2]
[314192289,1708056647115,-500.0,0.00041538,2]
[314192290,1708056647124,-591.36146048,0.00041538,10]
[314192291,1708056647134,-200.0,0.00041539,20]
[314192292,1708056647143,-150.0,0.0004154,2]
[314192293,1708056647153,-150.0,0.00041544,2]
[314192294,1708056647162,-3000.0,0.0004155,9]
[314192295,1708056647171,-800.0,0.00041551,20]
[314192296,1708056647182,-193.0,0.00041555,7]
[314192297,1708056647191,-6883.49994392,0.00041569,2]
[314192298,1708056647200,-19745.08316842,0.0004157,2]
[314192299,1708056647210,-500.0,0.00041572,7]
[314192300,1708056647219,-150.0,0.00041574,2]
[314192301,1708056647228,-200.0,0.00041574,20]
[314192302,1708056647237,-500.0,0.00041574,20]
[314192303,1708056647246,-152.0,0.00041577,7]
[314192304,1708056647256,-150.0,0.00041595,2]
[314192305,1708056647265,-800.0,0.00041597,20]
[314192306,1708056647275,-166.66666666,0.00041597,30]
[314192307,1708056647285,-1000.0,0.00041599,2]
[314192308,1708056647294,-1000.0,0.000416,6]
[314192309,1708056647303,-200.0,0.00041609,20]
[314192310,1708056647312,-150.0,0.0004161,2]
[314192311,1708056647321,-150.0,0.00041615,2]
[314192312,1708056647330,-150.0,0.00041615,2]
[314192313,1708056647339,-150.0,0.00041616,2]
[314192314,1708056647349,-166.6666667,0.00041616,30]
[314192315,1708056647358,-150.0,0.00041622,2]
[314192316,1708056647367,-150.0,0.00041623,2]
[314192317,1708056647376,-150.0,0.00041634,2]
[314192318,1708056647385,-150.0,0.00041638,2]
[314192319,1708056647394,-1164.85822245,0.00041639,2]
[314192320,1708056647403,-150.0,0.0004164,2]
[314192321,1708056647413,-1309.93,0.00041643,30]
[314192322,1708056647423,-150.0,0.00041643,2]
[314192323,1708056647432,-150.0,0.00041643,2]
[314192324,1708056647442,-500.0,0.00041643,30]
[314192325,1708056647451,-500.0,0.00041643,30]
[314192326,1708056647461,-1066.52,0.00041643,30]
[314192327,1708056647470,-500.0,0.00041643,30]
[314192328,1708056647479,-500.0,0.00041643,30]
[314192329,1708056647488,-500.0,0.00041643,30]
[314192330,1708056647497,-518.71,0.00041643,30]
[314192331,1708056647506,-500.0,0.00041643,30]
[314192332,1708056647515,-500.0,0.00041643,30]
[314192333,1708056647525,-523.13,0.00041643,30]
[314192334,1708056647534,-812.87,0.00041643,30]
[314192335,1708056647543,-500.0,0.00041643,30]
[314192336,1708056647554,-4810.13,0.00041643,30]
[314192337,1708056647565,-500.0,0.00041643,30]
[314192338,1708056647575,-905.0,0.00041643,30]
[314192339,1708056647585,-3865.85,0.00041643,30]
[314192340,1708056647594,-1633.51,0.00041643,7]
[314192341,1708056647603,-500.0,0.00041643,30]
[314192342,1708056647613,-600.0,0.00041643,30]
[314192343,1708056647625,-500.0,0.00041643,30]
[314192344,1708056647635,-500.0,0.00041643,30]
[314192345,1708056647646,-735.17,0.00041643,30]
[314192346,1708056647657,-998.51,0.00041643,7]
[314192347,1708056647667,-500.0,0.00041643,30]
[314192348,1708056647676,-186.74640948,0.00041643,30]
[314192349,1708056647685,-394.53059133,0.00041643,30]
[314192350,1708056647696,-200.0,0.00041643,15]
[314192351,1708056647705,-800.0,0.00041643,20]
[314192352,1708056647715,-200.0,0.00041643,20]
[314192353,1708056647724,-200.0,0.00041643,20]
[314192354,1708056647733,-500.0,0.00041643,20]
[314192355,1708056647743,-150.0,0.0004165,2]
[314192356,1708056647752,-500.0,0.00041691,7]
[314192357,1708056647762,-193.0,0.00041692,7]
[314192358,1708056647772,-800.7348891,0.00041693,4]
[314192359,1708056647781,-150.0,0.000417,2]
[314192360,1708056647790,-152.0,0.00041714,7]
[314192361,1708056647799,-150.0,0.00041719,2]
[314192362,1708056647808,-150.0,0.00041724,2]
[314192363,1708056647817,-1500.0,0.00041726,2]
[314192364,1708056647827,-1164.85822245,0.00041726,2]
[314192365,1708056647837,-255.0,0.00041728,12]
[314192366,1708056647847,-255.0,0.00041728,12]
[314192367,1708056647856,-255.0,0.00041728,12]
[314192368,1708056647866,-150.0,0.00041733,2]
[314192369,1708056647876,-150.0,0.00041734,2]
[314192370,1708056647885,-150.0,0.00041737,2]
[314192371,1708056647895,-150.0,0.00041749,2]
[314192372,1708056647904,-150.0,0.00041764,2]
[314192373,1708056647914,-500.0,0.00041774,4]
[314192374,1708056647923,-150.0,0.00041778,2]
[314192375,1708056647932,-300.0,0.0004178,2]
[314192376,1708056647942,-500.0,0.00041782,4]
[314192377,1708056647951,-150.0,0.00041783,2]
[314192378,1708056647961,-500.0,0.00041791,4]
[314192379,1708056647970,-150.0,0.00041792,2]
[314192380,1708056647980,-150.0,0.00041795,2]
[314192381,1708056647989,-162.14051739,0.00041796,30]
[314192382,1708056647998,-400.06145351,0.00041797,2]
[314192383,1708056648010,-151.021624,0.00041798,27]
[314192384,1708056648019,-500.0,0.000418,4]
[314192385,1708056648031,-341.78,0.000418,4]
[314192386,1708056648040,-341.78,0.000418,4]
[314192387,1708056648050,-341.78,0.000418,4]
[314192388,1708056648059,-341.78,0.000418,4]
[314192389,1708056648069,-341.78,0.000418,4]
[314192390,1708056648080,-341.78,0.000418,4]
[314192391,1708056648090,-341.78,0.000418,4]
[314192392,1708056648100,-341.78,0.000418,4]
[314192393,1708056648112,-341.78,0.000418,4]
[314192394,1708056648122,-341.78,0.000418,4]
[314192395,1708056648132,-341.78,0.000418,4]
[314192396,1708056648142,-341.78,0.000418,4]
[314192397,1708056648152,-341.78,0.000418,4]
[314192398,1708056648162,-341.78,0.000418,4]
[314192399,1708056648171,-341.78,0.000418,4]
[314192400,1708056648181,-341.78,0.000418,4]
[314192401,1708056648191,-341.78,0.000418,4]
[314192402,1708056648201,-341.78,0.000418,4]
[314192403,1708056648211,-341.78,0.000418,4]
[314192404,1708056648220,-341.78,0.000418,4]
[314192405,1708056648229,-300000.0,0.000418,30]
[314192406,1708056648238,-150.0,0.00041801,2]
[314192407,1708056648247,-150.0,0.0004181,2]
[314192408,1708056648256,-500.0,0.00041811,7]
[314192409,1708056648266,-150.0,0.00041816,2]
[314192410,1708056648275,-150.0,0.00041817,2]
[314192411,1708056648284,-193.0,0.00041829,7]
[314192412,1708056648293,-286.0,0.00041835,7]
[314192413,1708056648302,-171.0,0.00041835,7]
[314192414,1708056648312,-200.0,0.00041835,7]
[314192415,1708056648321,-150.0,0.00041836,2]
[314192416,1708056648330,-150.0,0.00041842,2]
[314192417,1708056648339,-150.0,0.00041844,2]
[314192418,1708056648348,-152.0,0.00041851,7]
[314192419,1708056648358,-300.0,0.00041855,2]
[314192420,1708056648367,-390.0,0.00041862,30]
[314192421,1708056648376,-150.0,0.00041868,2]
[314192422,1708056648385,-150.0,0.00041869,2]
[314192423,1708056648395,-150.0,0.00041878,2]
[314192424,1708056648404,-34246.0966,0.00041879,2]
[314192425,1708056648413,-150.0,0.00041879,2]
[314192426,1708056648423,-150.0,0.00041892,2]
[314192427,1708056648433,-150.0,0.00041898,2]
[314192428,1708056648442,-3000.0,0.000419,49]
[314192429,1708056648451,-5578.16148446,0.000419,2]
[314192430,1708056648461,-5578.16148444,0.000419,2]
[314192431,1708056648470,-5578.16148444,0.000419,2]
[314192432,1708056648478,-5578.16148444,0.000419,2]
[314192433,1708056648488,-5578.16148444,0.000419,2]
[314192434,1708056648498,-666.0,0.000419,15]
[314192435,1708056648507,-5578.16148444,0.000419,2]
[314192436,1708056648516,-5578.16148444,0.000419,2]
[314192437,1708056648525,-5578.16148444,0.000419,2]
[314192438,1708056648535,-5578.16148444,0.000419,2]
[314192439,1708056648545,-5578.16148444,0.000419,2]
[314192440,1708056648554,-5578.16148444,0.000419,2]
[314192441,1708056648563,-5578.16148444,0.000419,2]
[314192442,1708056648573,-5578.16148444,0.000419,2]
[314192443,1708056648583,-5578.16148444,0.000419,2]
[314192444,1708056648592,-5578.16148444,0.000419,2]
[314192445,1708056648602,-5578.16148444,0.000419,2]
[314192446,1708056648611,-5578.16148444,0.000419,2]
[314192447,1708056648621,-5578.16148444,0.000419,2]
[314192448,1708056648630,-5578.16148444,0.000419,2]
[314192449,1708056648640,-5578.16148444,0.000419,2]
[314192450,1708056648650,-168.63731942,0.00041901,30]
[314192451,1708056648659,-150.0,0.00041906,2]
[314192452,1708056648669,-3000.0,0.0004191,49]
[314192453,1708056648678,-150.0,0.00041913,2]
[314192454,1708056648687,-1309.93,0.00041917,30]
[314192455,1708056648697,-500.0,0.00041917,30]
[314192456,1708056648706,-1066.52,0.00041917,30]
[314192457,1708056648715,-500.0,0.00041917,30]
[314192458,1708056648725,-500.0,0.00041917,30]
[314192459,1708056648734,-500.0,0.00041917,30]
[314192460,1708056648743,-518.71,0.00041917,30]
[314192461,1708056648752,-500.0,0.00041917,30]
[314192462,1708056648762,-500.0,0.00041917,30]
[314192463,1708056648771,-523.13,0.00041917,30]
[314192464,1708056648780,-812.87,0.00041917,30]
[314192465,1708056648790,-500.0,0.00041917,30]
[314192466,1708056648799,-4810.13,0.00041917,30]
[314192467,1708056648809,-500.0,0.00041917,30]
[314192468,1708056648818,-905.0,0.00041917,30]
[314192469,1708056648828,-3865.85,0.00041917,30]
[314192470,1708056648838,-1633.51,0.00041917,7]
[314192471,1708056648847,-500.0,0.00041917,30]
[314192472,1708056648856,-600.0,0.00041917,30]
[314192473,1708056648866,-420.69756059,0.00041917,30]
[314192474,1708056648875,-500.0,0.00041917,30]
[314192475,1708056648885,-735.17,0.00041917,30]
[314192476,1708056648895,-500.0,0.00041917,30]
[314192477,1708056648904,-5483.874982,0.0004192,49]
[314192478,1708056648914,-151.2636563,0.0004192,2]
[314192479,1708056648924,-500.0,0.0004193,7]
[314192480,1708056648934,-147100.386632,0.00041938,2]
[314192481,1708056648944,-151.218375,0.00041938,14]
[314192482,1708056648954,-233.563849,0.00041938,14]
[314192483,1708056648964,-151.0,0.00041938,14]
[314192484,1708056648973,-151.0,0.00041938,14]
[314192485,1708056648982,-151.0,0.00041938,14]
[314192486,1708056648992,-151.0,0.00041938,14]
[314192487,1708056649002,-151.0,0.00041938,14]
[314192488,1708056649012,-151.0,0.00041938,7]
[314192489,1708056649022,-151.0,0.00041938,14]
[314192490,1708056649031,-151.0,0.00041938,14]
[314192491,1708056649041,-151.0,0.00041938,14]
[314192492,1708056649050,-151.0,0.00041938,14]
[314192493,1708056649060,-150.0,0.00041945,2]
[314192494,1708056649070,-150.0,0.00041947,2]
[314192495,1708056649080,-150.0,0.00041958,2]
[314192496,1708056649089,-150.0,0.00041958,2]
[314192497,1708056649099,-193.0,0.00041966,7]
[314192498,1708056649111,-10022.8602637,0.00041969,2]
[314192499,1708056649122,-2176.9052194,0.00041969,2]
[314192500,1708056649131,-31019.1303994,0.00041969,2]
[314192501,1708056649142,-720.6247538,0.00041971,2]
[314192502,1708056649152,-152.0802752,0.00041971,2]
[314192503,1708056649161,-9344.6766979,0.00041971,2]
[314192504,1708056649171,-2029.6078107,0.00041971,2]
[314192505,1708056649182,-29075.006794,0.00041971,2]
[314192506,1708056649191,-150.01,0.00041979,2]
[314192507,1708056649200,-3316.80182207,0.00041979,2]
[314192508,1708056649210,-150.0,0.00041979,3]
[314192509,1708056649219,-150.0,0.00041979,3]
[314192510,1708056649229,-135527.64638887,0.0004198,2]
[314192511,1708056649238,-41866.01678798,0.0004198,2]
[314192512,1708056649516,-298636.18238442,0.0004198,2]
[314192513,1708056649525,-155.0,0.0004198,4]
[314192514,1708056649535,-3267.62836697,0.0004198,2]
[314192515,1708056649544,-2000.0,0.0004198,7]
[314192516,1708056649554,-200.0,0.0004198,7]
[314192517,1708056649563,-151.0,0.0004198,14]
[314192518,1708056649572,-151.0,0.0004198,14]
[314192519,1708056649581,-151.0,0.0004198,14]
[314192520,1708056649590,-151.0,0.0004198,14]
[314192521,1708056649600,-151.0,0.0004198,7]
[314192522,1708056649608,-155.643189,0.0004198,14]
[314192523,1708056649617,-241.83973937,0.0004198,7]
[314192524,1708056649626,-200.0,0.0004198,7]
[314192525,1708056649635,-151.0,0.0004198,14]
[314192526,1708056649644,-266.427005,0.0004198,14]
[314192527,1708056649653,-151.0,0.0004198,14]
[314192528,1708056649662,-151.0,0.0004198,14]
[314192529,1708056649672,-286.22743,0.0004198,14]
[314192530,1708056649682,-286.22743,0.0004198,14]
[314192531,1708056649690,-151.0,0.0004198,14]
[314192532,1708056649700,-151.0,0.0004198,14]
[314192533,1708056649709,-151.0,0.0004198,14]
[314192534,1708056649719,-151.0,0.0004198,2]
[314192535,1708056649728,-245.607015,0.0004198,2]
[314192536,1708056649737,-200.0,0.00041987,23]
[314192537,1708056649746,-200.0,0.00041987,22]
[314192538,1708056649756,-200.0,0.00041987,21]
[314192539,1708056649765,-200.0,0.00041987,20]
[314192540,1708056649774,-152.0,0.00041988,7]
[314192541,1708056649783,-200.0,0.0004199,7]
[314192542,1708056649793,-400.06145351,0.00041997,2]
[314192543,1708056649802,-150.0,0.00041999,3]
[314192544,1708056649812,-150.0,0.00041999,3]
[314192545,1708056649821,-308.4792,0.00042,59]
[314192546,1708056649830,-965.23195016,0.00042,7]
[314192547,1708056649839,-114316.2486262,0.00042,20]
[314192548,1708056649851,-160586.5913738,0.00042,20]
[314192549,1708056649860,-35175.70487209,0.00042,7]
[314192550,1708056649876,-207.42685,0.00041918,14]
[314192551,1708056649885,-537.55323457,0.00042,7]
[314192552,1708056649897,-741.27723955,0.00042,7]
[314192553,1708056649908,-420.8888349,0.00042,7]
[314192554,1708056649919,-313.89851893,0.00042,7]
[314192555,1708056649931,-4489.16525916,0.00042,7]
[314192556,1708056649942,-1003.97842438,0.00042,7]
[314192557,1708056649953,-2086.03578028,0.00042,7]
[314192558,1708056649965,-5231.49783614,0.00042,7]
[314192559,1708056649974,-175.73,0.00042,7]
[314192560,1708056649983,-645.15231902,0.00042,120]
[314192561,1708056649993,-6074.34431271,0.00042,4]
[314192562,1708056650003,-1000.0,0.00042,30]
[314192563,1708056650012,-500.0,0.00042,2]
[314192564,1708056650022,-53618.29970661,0.00042,5]
[314192565,1708056650078,-157.71374333,0.0003633,2]
[314192566,1708056650088,-311.502508,0.000378,2]
[314192567,1708056650108,-188.487492,0.000378,2]
[314192568,1708056650118,-175.9776796,0.000379,2]
[314192569,1708056650127,-500.0,0.00038356,7]
[314192570,1708056650136,-500.0,0.0003863,7]
[314192571,1708056650146,-500.0,0.00038904,7]
[314192572,1708056650155,-500.0,0.00039178,7]
[314192573,1708056650165,-500.0,0.00039452,7]
[314192574,1708056650174,-500.0,0.00039726,7]
[314192575,1708056650184,-500.0,0.0004,7]
[314192576,1708056650193,-1626.81029339,0.00042,5]
[314192577,1708056650202,-1008.98466596,0.00042,25]
[314192578,1708056650211,-300.0,0.00042,43]
[314192579,1708056650220,-3613.27774861,0.00042,15]
[314192580,1708056650232,-392.5291125,0.00042,15]
[314192581,1708056650243,-375.07547302,0.00042,15]
[314192582,1708056650254,-5619.11766587,0.00042,15]
[314192583,1708056650263,-503.08700239,0.00042,6]
[314192584,1708056650334,-355.16518026,0.00042,6]
[314192585,1708056650346,-72.7988853,0.00042,6]
[314192586,1708056650355,-1405.91085415,0.00042,2]
[314192587,1708056650366,-995.9349375,0.00042,2]
[314192588,1708056650377,-2612.09516426,0.00042,2]
[314192589,1708056650562,-157.71374333,0.00037115,2]
[314192590,1708056650571,-5695.62,0.0004059,10]
[314192591,1708056650581,-150.0,0.00040698,2]
[314192592,1708056650590,-150.0,0.00040948,2]
[314192593,1708056650600,-150.0,0.00040975,2]
[314192594,1708056650609,-150.0,0.00040981,2]
[314192595,1708056650618,-150.0,0.00041122,2]
[314192596,1708056650627,-150.0,0.00041277,2]
[314192597,1708056650637,-150.0,0.00041441,2]
[314192598,1708056650646,-150.0,0.00041473,2]
[314192599,1708056650655,-150.0,0.00041654,2]
[314192600,1708056650664,-150.0,0.00041702,2]
[314192601,1708056650673,-150.0,0.00041703,2]
[314192602,1708056650682,-150.0,0.00041747,2]
[314192603,1708056650691,-150.0,0.00041758,2]
[314192604,1708056650700,-150.0,0.0004177,2]
[314192605,1708056650709,-150.0,0.00041783,2]
[314192606,1708056650718,-150.0,0.00041795,2]
[314192607,1708056650727,-150.0,0.00041814,2]
[314192608,1708056650736,-150.0,0.0004182,2]
[314192609,1708056650745,-150.0,0.00041844,2]
[314192610,1708056650754,-150.0,0.00041851,2]
[314192611,1708056650763,-150.0,0.0004186,2]
[314192612,1708056650772,-150.0,0.00041862,2]
[314192613,1708056650781,-150.0,0.00041877,2]
[314192614,1708056650790,-150.0,0.00041882,2]
[314192615,1708056650799,-150.0,0.00041884,2]
[314192616,1708056650808,-150.0,0.00041888,2]
[314192617,1708056650817,-150.0,0.000419,2]
[314192618,1708056650826,-150.0,0.00041913,2]
[314192619,1708056650835,-150.0,0.0004192,2]
[314192620,1708056650844,-150.0,0.00041943,2]
[314192621,1708056650854,-150.0,0.0004196,2]
[314192622,1708056650863,-94628.70619662,0.00042,2]
[314192623,1708056650873,-80000.0,0.00042,7]
[314192624,1708056650882,-2146.6,0.00042,7]
[314192625,1708056650891,-1609.86,0.00042,30]
[314192626,1708056650901,-767.04,0.00042,120]
[314192627,1708056650911,-151.0,0.00042,14]
[314192628,1708056650920,-151.0,0.00042,7]
[314192629,1708056650929,-151.0,0.00042,14]
[314192630,1708056650939,-471.64102068,0.00042,2]
[314192631,1708056650947,-151.0,0.00042,14]
[314192632,1708056650957,-151.0,0.00042,14]
[314192633,1708056650967,-151.0,0.00042,14]
[314192634,1708056650976,-1016.0,0.00042,7]
[314192635,1708056650985,-200.0,0.00042,2]
[314192636,1708056650995,-200.0,0.00042,49]
[314192637,1708056651005,-200.0,0.00042,2]
[314192638,1708056651014,-151.0,0.00042,7]
[314192639,1708056651024,-323.91,0.00042,120]
[314192640,1708056651034,-151.0,0.00042,14]
[314192641,1708056651043,-151.0,0.00042,14]
[314192642,1708056651052,-151.0,0.00042,14]
[314192643,1708056651061,-151.0,0.00042,14]
[314192644,1708056651071,-151.0,0.00042,2]
[314192645,1708056651081,-1000.0,0.00042013,15]
[314192646,1708056651090,-500.0,0.00042049,7]
[314192647,1708056651100,-640.0,0.00042064,2]
[314192648,1708056651111,-2000.0,0.00042083,2]
[314192649,1708056651121,-2000.0,0.00042083,2]
[314192650,1708056651130,-1790.65,0.00042092,15]
[314192651,1708056651140,-10963.62934767,0.00042096,16]
[314192652,1708056651154,-120.22927306,0.00042096,16]
[314192653,1708056651164,-1000.0,0.000421,60]
[314192654,1708056651173,-193.0,0.00042103,7]
[314192655,1708056651183,-405.89082514,0.00042104,15]
[314192656,1708056651225,-150.0,0.00041758,2]
[314192657,1708056651233,-150.0,0.00041769,2]
[314192658,1708056651243,-150.0,0.00041787,2]
[314192659,1708056651252,-150.0,0.00041868,2]
[314192660,1708056651261,-52.9326512,0.00041908,2]
[314192661,1708056651665,191.63562313,0.00034108,4]
[314192662,1708056655167,24989.03,0.00035,2]
[314192663,1708056666172,191.63562313,0.00034108,4]
[314192664,1708056686174,244.39584487,0.00034108,4]
[314192666,1708056993894,206.0,0.00034826,2]
[314192667,1708057140091,3888.27748083,0.00034826,4]
[314192668,1708057158128,2592.18498722,0.00034826,4]
[314192669,1708057180141,2160.15415602,0.00034826,4]
[314192670,1708057198148,1512.10790921,0.00034826,4]
[314192671,1708057210454,1065.43,0.00035,2]
[314192672,1708057216138,1512.10790921,0.00034826,4]
[314192673,1708057225786,1065.42,0.00035,2]
[314192674,1708057236140,1512.10790921,0.00034826,4]
[314192675,1708057262144,1512.10790921,0.00034826,4]
[314192676,1708057280149,1512.10790921,0.00034826,4]
[314192677,1708057296157,1512.10790921,0.00034826,4]
[314192678,1708057312343,1512.10790921,0.00034826,4]
[314192679,1708057336160,1512.10790921,0.00034826,4]
[314192680,1708057352158,864.0616624,0.00034826,4]
[314192682,1708057458794,189.96,0.00034245,2]
[314192683,1708057540685,608.95907375,0.00034245,4]
[314192684,1708057666661,784.0,0.00034245,2]
[314192685,1708057734123,179.15,0.00034245,2]
[314192694,1708057833604,-311.06238185,0.00035091,4]
[314192695,1708057833616,-389.15265442,0.00035091,4]
[314192696,1708057833626,-880.57245732,0.00035092,4]
[314192697,1708057833635,-650.96032129,0.00035093,10]
[314192698,1708057833649,-255.59976067,0.00035093,10]
[314192699,1708057833660,-180.33670104,0.00035098,10]
[314192700,1708057833670,-310.29202323,0.00035107,10]
[314192701,1708057833679,-155.99698487,0.0003613,2]
[314192702,1708057833689,-285.05,0.0003623,2]
[314192703,1708057833698,-304.85,0.00036472,2]
[314192704,1708057833707,-155.99698485,0.00037202,2]
[314192705,1708057833717,-200.0,0.00037497,3]
[314192706,1708057833726,-399.43998983,0.00037498,2]
[314192707,1708057833738,-1026.39824093,0.00037498,2]
[314192708,1708057833754,-50.33416924,0.00037498,2]
[314192709,1708057833764,-4615.11,0.00037498,2]
[314192710,1708057833773,-499.99,0.00037498,2]
[314192711,1708057833782,-1211.06864332,0.00037816,2]
[314192712,1708057833794,-652.78451772,0.00037816,2]
[314192713,1708057833806,-136.14683896,0.00037816,2]
[314192714,1708057833815,-11387.04,0.00037816,2]
[314192715,1708057833824,-206.0,0.00037861,2]
[314192716,1708057833833,-216.83,0.00037974,2]
[314192717,1708057833842,-154.63,0.00038098,2]
[314192718,1708057833851,-174.09,0.00038165,2]
[314192719,1708057833860,-155.99698485,0.00038274,2]
[314192720,1708057833869,-250.0,0.000383,2]
[314192721,1708057833878,-250.0,0.00038322,111]
[314192722,1708057833888,-155.04,0.00038356,2]
[314192723,1708057833898,-1492.2,0.00038356,15]
[314192724,1708057833907,-274.14,0.000384,2]
[314192726,1708057833917,-2635.75675852,0.00038418,5]
[314192728,1708057833926,-847.47200329,0.00038458,5]
[314192730,1708057833935,-757.09938168,0.00038458,4]
[314192732,1708057833944,-2140.14419163,0.00038458,5]
[314192734,1708057833953,-380.36388123,0.00038458,2]
[314192736,1708057833962,-292.44670225,0.00038458,5]
[314192738,1708057833971,-153.23276896,0.00038458,2]
[314192740,1708057833981,-784.0,0.00038526,2]
[314192742,1708057833991,-158.05,0.00038693,2]
[314192744,1708057834000,-304.85,0.00038736,2]
[314192746,1708057834010,-14634.0,0.000388,2]
[314192748,1708057834020,-2140.0,0.000388,2]
[314192750,1708057834029,-2000.0,0.00039,4]
[314192751,1708057834038,-1799.43,0.00039214,2]
[314192753,1708057834047,-171.01,0.0003926,2]
[314192755,1708057834056,-158.06,0.00039331,2]
[314192756,1708057834066,-155.99698485,0.00039346,2]
[314192757,1708057834075,-151.021,0.00039398,24]
[314192758,1708057834084,-315.4273,0.00039415,2]
[314192759,1708057834094,-697.62259051,0.0003947,2]
[314192760,1708057834103,-5000.0,0.0003948,7]
[314192761,1708057834113,-17022.25332081,0.0003948,2]
[314192762,1708057834122,-151.021678,0.00039498,25]
[314192763,1708057834131,-4746.35,0.00039503,10]